Cogmind - Beta 16 *** ADVENTURER MODE // 2025.10.25 @ 13:11:20 Player: Revenant Result: Destroyed by D-53 Grenadier with Mini Grenade Launcher Performance ------------- Evolutions (0) 0 Regions Visited (0) 0 Robots Destroyed (0) 0 Value Destroyed (0) 0 Prototype IDs (0) 0 Alien Tech Used (0) 0 Bonus (0) 0 TOTAL SCORE: 0 Bonus ------- None Cogmind --------- Core Integrity 0/250 Matter 295/300 Energy 100/100 System Corruption 0% Temperature Cool (0) Movement Rolling (100) Location -11/Scrapyard Parts ------- > --- POWER (1) -------- (None) > --- PROPULSION (2) --- Compact Wheel > --- UTILITY (2) ------ Small Storage Unit > --- WEAPON (2) ------- Light Assault Rifle > --- INVENTORY (8) ---- Light Ion Engine Light Treads Light Treads Compact Wheel Light Assault Rifle Peak State ------------ > --- POWER ------------ Ion Engine > --- PROPULSION ------- Aluminum Leg Aluminum Leg > --- UTILITY ---------- Small Storage Unit > --- WEAPON ----------- Light Assault Rifle Light Assault Rifle > --- INVENTORY -------- Light Ion Engine Light Treads Light Treads Compact Wheel Compact Wheel Light Assault Rifle [Rating: 6] Favorites ----------- Power Ion Engine Engine Ion Engine Propulsion Aluminum Leg Leg Aluminum Leg Wheel Compact Wheel Utility Small Storage Unit Storage Small Storage Unit Weapon Light Assault Rifle Ballistic Gun Light Assault Rifle Build | -11 ------- Run | Yrd Slots Evolved . | . Power . | . Propulsion . | . Utility . | . Weapon . | . Parts Attached 1 | 1 Power . | . Engine . | . Core . | . Reactor . | . Propulsion 1 | 1 Treads . | . Leg . | . Wheel 1 | 1 Hover . | . Flight . | . Utility . | . Device . | . Storage . | . Processor . | . Hackware . | . Protection . | . Artifact . | . Weapon . | . Energy Gun . | . Energy Cannon . | . Ballistic Gun . | . Ballistic Cannon . | . Launcher . | . Special Weapon . | . Impact Weapon . | . Slashing Weapon . | . Piercing Weapon . | . Special Melee Weapon . | . Unidentified Prototypes . | . Parts Lost 4 | 4 Power 1 | 1 Propulsion 2 | 2 Utility . | . Weapon 1 | 1 Highest Loss Streak 4 | 4 To Critical Strikes . | . Average Backups 6 | 6 Power 1 | 1 Propulsion 4 | 4 Utility . | . Weapon 1 | 1 Tool/Special . | . Unused Backups . | . Power . | . Propulsion . | . Utility . | . Weapon . | . Tool/Special . | . Average Slot Usage (%) . | . Peak Build Rating 6 | 6 Average Rating 5 | 5 On Entrance 6 | 6 Avg Prop Armor Cover (%) . | . Naked Turns . | . Heaviest Build 12 | 12 Greatest Support 20 | 20 Greatest Overweight (x) 1 | 1 Average Overweight (x) . | . Largest Inventory Capacity 8 | 8 Average Capacity 8 | 8 Most Carried 6 | 6 Average Carried 5 | 5 Final Capacity 8 | 8 Final Carried 5 | 5 Class Distribution -------------------- None Dominant Class ---------------- None Resources | -11 ----------- Run | Yrd Matter Collected 200 | 200 Remotely . | . Salvage Created . | . Parts . | . Haulers Intercepted . | . Recyclers Shooed . | . Parts Field Recycled . | . Retrieved Matter . | . Parts Self-Destructed . | . Prevented . | . Parts Restored . | . Kills | -11 ------- Run | Yrd Combat Hostiles Destroyed . | . Classes Destroyed . | . Best Kill Streak . | . Combat Bots Only . | . Max Kills in Single Turn . | . Gunslinging . | . Exploded . | . Melee . | . Uniques/NPCs Destroyed . | . Combat | -11 -------- Run | Yrd Hostile Shots Fired 48 | 48 Missed 18 | 18 Hits 30 | 30 Projectile 30 | 30 AOE 14 | 14 Damage Taken 670 | 670 Core 254 | 254 Absorbed by Shields . | . Ignored by Resistances 184 | 184 Core Remaining (%) . | . Volleys Fired 2 | 2 Largest 2 | 2 Hottest 40 | 40 Shots Fired 4 | 4 Gun 4 | 4 Cannon . | . Launcher . | . Special . | . Kinetic 4 | 4 Thermal . | . Explosive . | . Electromagnetic . | . Robot Hit Streak 1 | 1 Robot Miss Streak 3 | 3 Penetration Max . | . Secondary Targets . | . Shots Hit Robots 1 | 1 Core Hits . | . Critical Kills . | . Critical Parts Destroyed . | . Critical Strikes . | . Melee Attacks . | . Impact . | . Slashing . | . Piercing . | . Sneak Attacks . | . Combat Hostiles . | . Follow-up Attacks . | . Damage Inflicted 7 | 7 Guns 7 | 7 Cannons . | . Explosions . | . Melee . | . Ramming . | . Kinetic 7 | 7 Thermal . | . Explosive . | . Electromagnetic . | . Impact . | . Slashing . | . Piercing . | . Highest Corruption . | . Average Corruption . | . Corruption Purged . | . Corruption Blocked . | . Overload Shots . | . Overflow Damage . | . Projectiles . | . Explosions . | . Melee . | . Knockbacks . | . Impact . | . Kinetic . | . Secondary . | . Self-Inflicted Damage . | . Shots . | . Rammed . | . Targets Rammed . | . Kicked . | . Crushed . | . Highest Temperature . | . Average Temperature . | . Received Heat Transfer . | . Siege Activations . | . Martial Activations . | . Shielding Activations . | . Robots Disrupted . | . Combat Hostiles . | . Robots Corrupted . | . Combat Hostiles . | . Parts Fried . | . Impact Corruptions . | . Robots Melted . | . Combat Hostiles . | . Parts Melted . | . Heat Transferred . | . Parts Sabotaged . | . Parts Stolen . | . Parts Stripped . | . Power Chain Reactions . | . Alert | -11 ------- Run | Yrd Maximum Alert Level . | . Low Security (%) 100 | 100 Level 1 . | . Level 2 . | . Level 3 . | . Level 4 . | . Level 5 . | . High Security . | . Max Security . | . Peak Influence . | . Initial . | . Average . | . Influence Increases . | . Influence Decreases . | . Squads Dispatched . | . Investigation . | . Extermination . | . Reinforcement . | . Assault . | . Garrison . | . Intercept . | . Searches Triggered . | . Construction Impeded . | . Haulers Reinforced . | . Active Scanning Responses . | . Cargo Convoy Interrupts . | . Stealth | -11 --------- Run | Yrd Distress Signals . | . Communications Jammed . | . Distress Signals . | . Times Spotted 20 | 20 Peak Tracking Total 13 | 13 Tactical Retreats . | . Traps | -11 ------- Run | Yrd Traps Triggered . | . Indirectly . | . Trap Hack Attempts . | . Triggered . | . Disarmed . | . Reprogrammed . | . Reused . | . Traps Extracted . | . Installed . | . Triggered . | . Machines | -11 ---------- Run | Yrd Machines Disabled . | . Max in Single Turn . | . Machines Repaired . | . Machines Dismantled . | . Machines Sabotaged . | . Overloaded Fab Kills . | . Hacking | -11 --------- Run | Yrd Machines Accessed . | . Terminals . | . Fabricators . | . Repair Stations . | . Recycling Units . | . Scanalyzers . | . Garrison Access . | . Total Hacks . | . Successful . | . Failed . | . Catastrophic . | . Database Lockouts . | . Manual . | . Terminals . | . Fabricators . | . Repair Stations . | . Recycling Units . | . Scanalyzers . | . Garrison Access . | . Terminal Hacks . | . Fabricator Hacks . | . Repair Station Hacks . | . Recycling Unit Hacks . | . Scanalyzer . | . Garrison Access Hacks . | . Unauthorized Hacks . | . Terminals . | . Fabricators . | . Repair Stations . | . Recycling Units . | . Scanalyzers . | . Garrison Access . | . Data Cores Recovered . | . Used . | . Hacking Detections . | . Full Trace Events . | . Feedback Events . | . Feedback Blocked . | . Robot Schematics Acquired . | . Robots Built . | . Authchips . | . Time . | . Total Robot Build Rating . | . Part Schematics Acquired . | . Parts Built . | . Authchips . | . Time . | . Total Part Build Rating . | . Part Studies Acquired . | . Parts Repaired . | . Time . | . Parts Recycled . | . Recycled Matter . | . Retrieved Matter . | . Retrieved Components . | . Parts Scanalyzed . | . Part Schematics Acquired . | . Parts Damaged . | . Bothacking | -11 ------------ Run | Yrd Used RIF Installer . | . Robots Hacked . | . Non-combat . | . Combat . | . Robot Hacks Applied . | . Relay Couplers Released . | . Fabnet Peak Effective % . | . Robots Rewired . | . Allies Hacked . | . Hacks Repelled . | . Allies | -11 -------- Run | Yrd Total Allies . | . Largest Group . | . Highest-Rated Group . | . Highest-Rated Ally . | . Total Orders . | . Ally Attacks . | . Total Damage . | . Kills . | . Allies Corrupted . | . Allies Melted . | . Intel | -11 ------- Run | Yrd Active Infowar (turns) . | . Robot Analysis Total . | . Derelict Logs Recovered . | . Drone Launches . | . Drone Recoveries . | . Exploration | -11 ------------- Run | Yrd Turns Passed 710 | 710 Spaces Moved 104 | 104 Core . | . Treads . | . Legs 99 | 99 Wheels 5 | 5 Hover . | . Flight . | . Fastest Speed 100 | 100 Average Speed 119 | 119 Slowest Speed 190 | 190 Overloaded Moves . | . Propulsion Burnouts . | . Robots Hopped . | . Potential Cave-ins . | . Cave-ins Triggered . | . Exploration Rate (%) 21 | 21 Regions Visited . Branch Regions . Pre-discovered Areas . | . Known Exits Taken . | . Unknown Exits Taken . | . Scrap Searched . | . Spaces Dug . | . Terrain Destroyed . | . Melee . | . Projectile . | . AOE . | . Terrain Rammed . | . Walls Destroyed . | . Machines Disabled . | . Actions | -11 --------- Run | Yrd Total 686 | 686 Wait 579 | 579 Move 104 | 104 Hop . | . Pick Up . | . Fast Attach . | . Attach 1 | 1 Detach . | . Swap . | . Drop . | . Fire 2 | 2 Melee . | . Ram . | . Kick . | . Crush . | . Escape Stasis . | . Rewire . | . Trap . | . Miscellaneous . | . Route ------- -11/Scrapyard (discovered 1 exit: [*Mat]) History --------- Turn | Location | Event 1 | -11/Scrapyard | Discovered new exit (range 3) 674 | -11/Scrapyard | Assembled infested the area 707 | -11/Scrapyard | Core integrity fell below 50% 710 | -11/Scrapyard | Core integrity fell below 20% 711 | -11/Scrapyard | Destroyed by D-53 Grenadier with Mini Grenade Launcher Last Messages --------------- 00620_ K-01 Serf collects debris. 00644_ T-07 Excavator is excavating. 00674_ ALERT: Infestation in the scrapyard, dispatching Demolisher response squad. 00674_ T-07 Excavator is excavating. 00689_ C-45 Heavy ARC bursts open, deploying its payload. 00689_ D-53 Grenadier unfolds itself. 00690_ as-81451 destroyed. 00690_ as-23587 destroyed. 00692_ as-48445 destroyed. 00696_ as-69385 destroyed. 00700_ as-37789 destroyed. 00700_ as-54096 destroyed. 00702_ Aluminum Leg destroyed. 00704_ Ion Engine destroyed. 00704_ Lgt. Assault Rifle destroyed. 00704_ as-97823 destroyed. 00708_ as-31999 destroyed. 00708_ as-06951 destroyed. 00709_ Aluminum Leg destroyed. Map ----- +----------------------------------------------------+ | ?????????????????????????????????????????????????? | | ?????????????????????????????????????????????????? | | ?????????????????????????????????????????????????? | | ?????????????????????????????????????????????????? | | ?????????????????????????????????????????????????? | | ?????????????????????????????????????????????????? | | ?????????????????????????????????????????????????? | | ?????????????????????????????????????????????????? | | ?????????????????????????????????????????????????? | | ?????????????????????????????????????????????????? | | ???????????????????????a?????????????????????????? | | ??????????????????????" ????????????????????????? | | ?????????????????????? a ????????????????????????? | | ??????????????????????#a ????????????????????????? | | ??????????????????????# a????????????????????????? | | ??????????????????????#|%????????????????????????? | | ??????????????????????#a=????????????????????????? | | ??????????????????????# ????????????????????????? | | ??????????????????????# #???????????????????????? | | ??????????????????????# a#???????????????????????? | | ?????????????????????## ##??????????????????????? | | ?????????????????????# ##?????????????????????? | | ?????????????????????# #?????????????????????? | | ????????????????????## a ##????????????????????? | | ????????????????????# a #????????????????????? | | ???????????????????## @ ##???????????????????? | | ???????????????????# ##??????????????????? | | ???????????????????# ####???????????????? | | ???????????????????# #???????????????? | | ???????????????????## % ##??????????????? | | ????????????????????# #####??????????? | | ????????????????????# ##?????????? | | ????????????????????# d #????????? | | ????????????????????## % d #????????? | | ?????????????????????#### #####???? | | ????????????????????????## ## #??? | | ?????????????????????????# " ?? | | ?????????????????????????# "%" ?? | | ?????????????????????????# ## #??? | | ?????????????????????????### ###### ##?## | | ???????????????????????????# ###????# #??# | | ???????????????????????????## # ##??????# #??# | | ????????????????????????????#######???????# #??# | | ??????????????????????????????????????????# #??# | | ??????????????????????????????????????????# #??# | | ???????????????????????????????????????#### #### | | ??????????????????????????##########???# # | | ??????????????????????????# #???# # | | ??????????????????????????# #???# ## | | ??????????????????????????# ##### | +----------------------------------------------------+ Best States ------------- Heat Dissipation 25 Energy Generation 10 Energy Capacity 250 Matter Stores 300 Matter Capacity 300 Sight Range 16 Terrain Scan Density 10 Resistance: KI 20 Resistance: TH 20 Resistance: EX 20 Resistance: EM 20 Resistance: I 20 Resistance: S 20 Resistance: P 20 Evasion (%) 55 Offensive Hacking 10 Item Schematics ----------------- None Robot Schematics ------------------ None Fabricated ------------ Nothing Repaired ---------- Nothing Studied --------- None Alien Tech Used ----------------- None Achievements -------------- None Challenges ------------ None Game ------ Seed BoreThrowingLauncher Manual? 0 Play Time 00:03:26 Cumulative 103.9 hours Start 2025.10.25 @ 13:08:50 End 2025.10.25 @ 13:11:20 Sessions 0 Manual Loads 0 Difficulty Adventurer Special Mode None Game No. 104 Rogue 102 Adventurer 2 Explorer 0 Win Type - Total 3 Types 2/0/0/1/0/0/0/0/0/0 Lore% 43 Gallery% 57 Achievement% 40 Wizard Run 0 Options --------- Layout 1 ASCII 0 Keyboard 0 Movement Arrows Keybinds 0 Fullscreen 2 Font 32/SmallcapsGlow Map View 77x35 Zoom Use 0% Tactical HUD 1 Map Filters NONE Filters NONE Steam 1 RUN: 4042c2f7-eff6-4a81-a365-d2f700effcb1